{"text_format":"3","workbook":"xlsx","n_sheets":1,"sheets":["Gider Raporu"],"not_rendered":{"images":2,"defined_names":12},"read":"whole","date_system":"1900"}

{"sheet":"Gider Raporu","index":0,"n_rows":24,"n_cols":13,"rows_kept":24,"merged":[[3,2,3,3],[3,5,3,6],[3,9,3,10],[4,2,4,3],[4,5,4,6],[4,9,4,10],[5,2,5,3],[5,5,5,6],[5,9,5,10],[6,2,6,3],[6,5,6,6],[6,9,6,10],[7,9,7,10]]}
[null,"GİDER RAPORU"]
[null,"CONTOSO, LTD."]
[null,"123 South Main Street, North Buffalo, NY 12345"]
[null,"TELEFON",4255550121,null,"AD","Merve Demir",null,null,"AMAÇ","Yıllık Satış Semineri",null,"KİLOMETRE BİRİM FİYATI",{"v":1,"d":"₺1.00/km"}]
[null,"FAKS",4255550122,null,"BÖLÜM","Satışlar",null,null,"BAŞLANGIÇ",{"$f":"IFERROR(MIN(Giderler[TARİH]),\"\")","v":"2018-06-04"},null,"YEMEK BİRİM FİYATI",{"v":60,"d":"₺60.00/gün"}]
[null,"E-POSTA","info@contoso.com",null,"POZİSYON","Genel Müdür",null,null,"BİTİŞ",{"$f":"IFERROR(MAX(Giderler[TARİH]),\"\")","v":"2018-07-04"},null,"OTEL BİRİM FİYATI",{"v":400,"d":"₺400.00/gece"}]
[null,"WEB","www.contoso.com",null,"YÖNETİCİ","Yusuf Çelik",null,null,"HAZIRLAYAN","Merve Demir",null,"TELEFON ÜCRETİ",{"v":20,"d":"₺20.00/gün"}]
[{"$nulls":8},"ONAYLAYAN","Yusuf Çelik",null,"DİĞER ÜCRETLER",{"v":100,"d":"₺100.00/gün"}]
[]
[null,"TARİH","HESAP","AÇIKLAMA","OTEL","ULAŞIM","YEMEKLER","TELEFON","DİĞER","Kilometre Sayacı \nBaşlangıcı","Kilometre Sayacı \nBİTİŞİ","KİLOMETRE \nTOPLAM","TOPLAM "]
[null,{"$f":"TODAY()","v":"2018-06-04"},"Satışlar","Mesafe",{"$nulls":4},{"v":100,"d":"₺100.00"},{"v":11378.5,"d":"11,378.5 km"},{"v":11456.2,"d":"11,456.2 km"},{"$f":"IF(COUNTA(Giderler[[#This Row],[Kilometre Sayacı \nBaşlangıcı]:[Kilometre Sayacı \nBİTİŞİ]])=2,(Giderler[[#This Row],[Kilometre Sayacı \nBİTİŞİ]]-Giderler[[#This Row],[Kilometre Sayacı \nBaşlangıcı]])*KilometreBirimFiyatı,\"\")","v":{"v":77.70000000000073,"d":"₺77.70"}},{"$f":"IF(COUNTA(Giderler[[#This Row],[TARİH]:[Kilometre Sayacı \nBİTİŞİ]])=0,\"\",SUM(Giderler[[#This Row],[OTEL]:[ULAŞIM]],Giderler[[#This Row],[YEMEKLER]:[DİĞER]],((Giderler[[#This Row],[Kilometre Sayacı \nBİTİŞİ]]-Giderler[[#This Row],[Kilometre Sayacı \nBaşlangıcı]])*(KilometreBirimFiyatı))))","v":{"v":177.70000000000073,"d":"₺177.70"}}]
[null,{"$f":"TODAY()+30","v":"2018-07-04"},"Satışlar","Konferans",{"v":890,"d":"₺890.00"},{"v":450,"d":"₺450.00"},{"v":40,"d":"₺40.00"},null,{"v":10,"d":"₺10.00"},{"v":11500,"d":"11,500.0 km"},{"v":11560,"d":"11,560.0 km"},{"$f":"IF(COUNTA(Giderler[[#This Row],[Kilometre Sayacı \nBaşlangıcı]:[Kilometre Sayacı \nBİTİŞİ]])=2,(Giderler[[#This Row],[Kilometre Sayacı \nBİTİŞİ]]-Giderler[[#This Row],[Kilometre Sayacı \nBaşlangıcı]])*KilometreBirimFiyatı,\"\")","v":{"v":60,"d":"₺60.00"}},{"$f":"IF(COUNTA(Giderler[[#This Row],[TARİH]:[Kilometre Sayacı \nBİTİŞİ]])=0,\"\",SUM(Giderler[[#This Row],[OTEL]:[ULAŞIM]],Giderler[[#This Row],[YEMEKLER]:[DİĞER]],((Giderler[[#This Row],[Kilometre Sayacı \nBİTİŞİ]]-Giderler[[#This Row],[Kilometre Sayacı \nBaşlangıcı]])*(KilometreBirimFiyatı))))","v":{"v":1450,"d":"₺1,450.00"}}]
[{"$nulls":11},{"$f":"IF(COUNTA(Giderler[[#This Row],[Kilometre Sayacı \nBaşlangıcı]:[Kilometre Sayacı \nBİTİŞİ]])=2,(Giderler[[#This Row],[Kilometre Sayacı \nBİTİŞİ]]-Giderler[[#This Row],[Kilometre Sayacı \nBaşlangıcı]])*KilometreBirimFiyatı,\"\")","v":""},{"$f":"IF(COUNTA(Giderler[[#This Row],[TARİH]:[Kilometre Sayacı \nBİTİŞİ]])=0,\"\",SUM(Giderler[[#This Row],[OTEL]:[ULAŞIM]],Giderler[[#This Row],[YEMEKLER]:[DİĞER]],((Giderler[[#This Row],[Kilometre Sayacı \nBİTİŞİ]]-Giderler[[#This Row],[Kilometre Sayacı \nBaşlangıcı]])*(KilometreBirimFiyatı))))","v":""}]
[{"$nulls":11},{"$f":"IF(COUNTA(Giderler[[#This Row],[Kilometre Sayacı \nBaşlangıcı]:[Kilometre Sayacı \nBİTİŞİ]])=2,(Giderler[[#This Row],[Kilometre Sayacı \nBİTİŞİ]]-Giderler[[#This Row],[Kilometre Sayacı \nBaşlangıcı]])*KilometreBirimFiyatı,\"\")","v":""},{"$f":"IF(COUNTA(Giderler[[#This Row],[TARİH]:[Kilometre Sayacı \nBİTİŞİ]])=0,\"\",SUM(Giderler[[#This Row],[OTEL]:[ULAŞIM]],Giderler[[#This Row],[YEMEKLER]:[DİĞER]],((Giderler[[#This Row],[Kilometre Sayacı \nBİTİŞİ]]-Giderler[[#This Row],[Kilometre Sayacı \nBaşlangıcı]])*(KilometreBirimFiyatı))))","v":""}]
[{"$nulls":11},{"$f":"IF(COUNTA(Giderler[[#This Row],[Kilometre Sayacı \nBaşlangıcı]:[Kilometre Sayacı \nBİTİŞİ]])=2,(Giderler[[#This Row],[Kilometre Sayacı \nBİTİŞİ]]-Giderler[[#This Row],[Kilometre Sayacı \nBaşlangıcı]])*KilometreBirimFiyatı,\"\")","v":""},{"$f":"IF(COUNTA(Giderler[[#This Row],[TARİH]:[Kilometre Sayacı \nBİTİŞİ]])=0,\"\",SUM(Giderler[[#This Row],[OTEL]:[ULAŞIM]],Giderler[[#This Row],[YEMEKLER]:[DİĞER]],((Giderler[[#This Row],[Kilometre Sayacı \nBİTİŞİ]]-Giderler[[#This Row],[Kilometre Sayacı \nBaşlangıcı]])*(KilometreBirimFiyatı))))","v":""}]
[{"$nulls":11},{"$f":"IF(COUNTA(Giderler[[#This Row],[Kilometre Sayacı \nBaşlangıcı]:[Kilometre Sayacı \nBİTİŞİ]])=2,(Giderler[[#This Row],[Kilometre Sayacı \nBİTİŞİ]]-Giderler[[#This Row],[Kilometre Sayacı \nBaşlangıcı]])*KilometreBirimFiyatı,\"\")","v":""},{"$f":"IF(COUNTA(Giderler[[#This Row],[TARİH]:[Kilometre Sayacı \nBİTİŞİ]])=0,\"\",SUM(Giderler[[#This Row],[OTEL]:[ULAŞIM]],Giderler[[#This Row],[YEMEKLER]:[DİĞER]],((Giderler[[#This Row],[Kilometre Sayacı \nBİTİŞİ]]-Giderler[[#This Row],[Kilometre Sayacı \nBaşlangıcı]])*(KilometreBirimFiyatı))))","v":""}]
[{"$nulls":11},{"$f":"IF(COUNTA(Giderler[[#This Row],[Kilometre Sayacı \nBaşlangıcı]:[Kilometre Sayacı \nBİTİŞİ]])=2,(Giderler[[#This Row],[Kilometre Sayacı \nBİTİŞİ]]-Giderler[[#This Row],[Kilometre Sayacı \nBaşlangıcı]])*KilometreBirimFiyatı,\"\")","v":""},{"$f":"IF(COUNTA(Giderler[[#This Row],[TARİH]:[Kilometre Sayacı \nBİTİŞİ]])=0,\"\",SUM(Giderler[[#This Row],[OTEL]:[ULAŞIM]],Giderler[[#This Row],[YEMEKLER]:[DİĞER]],((Giderler[[#This Row],[Kilometre Sayacı \nBİTİŞİ]]-Giderler[[#This Row],[Kilometre Sayacı \nBaşlangıcı]])*(KilometreBirimFiyatı))))","v":""}]
[{"$nulls":11},{"$f":"IF(COUNTA(Giderler[[#This Row],[Kilometre Sayacı \nBaşlangıcı]:[Kilometre Sayacı \nBİTİŞİ]])=2,(Giderler[[#This Row],[Kilometre Sayacı \nBİTİŞİ]]-Giderler[[#This Row],[Kilometre Sayacı \nBaşlangıcı]])*KilometreBirimFiyatı,\"\")","v":""},{"$f":"IF(COUNTA(Giderler[[#This Row],[TARİH]:[Kilometre Sayacı \nBİTİŞİ]])=0,\"\",SUM(Giderler[[#This Row],[OTEL]:[ULAŞIM]],Giderler[[#This Row],[YEMEKLER]:[DİĞER]],((Giderler[[#This Row],[Kilometre Sayacı \nBİTİŞİ]]-Giderler[[#This Row],[Kilometre Sayacı \nBaşlangıcı]])*(KilometreBirimFiyatı))))","v":""}]
[{"$nulls":11},{"$f":"IF(COUNTA(Giderler[[#This Row],[Kilometre Sayacı \nBaşlangıcı]:[Kilometre Sayacı \nBİTİŞİ]])=2,(Giderler[[#This Row],[Kilometre Sayacı \nBİTİŞİ]]-Giderler[[#This Row],[Kilometre Sayacı \nBaşlangıcı]])*KilometreBirimFiyatı,\"\")","v":""},{"$f":"IF(COUNTA(Giderler[[#This Row],[TARİH]:[Kilometre Sayacı \nBİTİŞİ]])=0,\"\",SUM(Giderler[[#This Row],[OTEL]:[ULAŞIM]],Giderler[[#This Row],[YEMEKLER]:[DİĞER]],((Giderler[[#This Row],[Kilometre Sayacı \nBİTİŞİ]]-Giderler[[#This Row],[Kilometre Sayacı \nBaşlangıcı]])*(KilometreBirimFiyatı))))","v":""}]
[{"$nulls":11},{"$f":"IF(COUNTA(Giderler[[#This Row],[Kilometre Sayacı \nBaşlangıcı]:[Kilometre Sayacı \nBİTİŞİ]])=2,(Giderler[[#This Row],[Kilometre Sayacı \nBİTİŞİ]]-Giderler[[#This Row],[Kilometre Sayacı \nBaşlangıcı]])*KilometreBirimFiyatı,\"\")","v":""},{"$f":"IF(COUNTA(Giderler[[#This Row],[TARİH]:[Kilometre Sayacı \nBİTİŞİ]])=0,\"\",SUM(Giderler[[#This Row],[OTEL]:[ULAŞIM]],Giderler[[#This Row],[YEMEKLER]:[DİĞER]],((Giderler[[#This Row],[Kilometre Sayacı \nBİTİŞİ]]-Giderler[[#This Row],[Kilometre Sayacı \nBaşlangıcı]])*(KilometreBirimFiyatı))))","v":""}]
[{"$nulls":11},{"$f":"IF(COUNTA(Giderler[[#This Row],[Kilometre Sayacı \nBaşlangıcı]:[Kilometre Sayacı \nBİTİŞİ]])=2,(Giderler[[#This Row],[Kilometre Sayacı \nBİTİŞİ]]-Giderler[[#This Row],[Kilometre Sayacı \nBaşlangıcı]])*KilometreBirimFiyatı,\"\")","v":""},{"$f":"IF(COUNTA(Giderler[[#This Row],[TARİH]:[Kilometre Sayacı \nBİTİŞİ]])=0,\"\",SUM(Giderler[[#This Row],[OTEL]:[ULAŞIM]],Giderler[[#This Row],[YEMEKLER]:[DİĞER]],((Giderler[[#This Row],[Kilometre Sayacı \nBİTİŞİ]]-Giderler[[#This Row],[Kilometre Sayacı \nBaşlangıcı]])*(KilometreBirimFiyatı))))","v":""}]
[null,"TOPLAMLAR",null,null,{"$f":"SUBTOTAL(109,Giderler[OTEL])","v":{"v":890,"d":"₺890.00"}},{"$f":"SUBTOTAL(109,Giderler[ULAŞIM])","v":{"v":450,"d":"₺450.00"}},{"$f":"SUBTOTAL(109,Giderler[YEMEKLER])","v":{"v":40,"d":"₺40.00"}},{"$f":"SUBTOTAL(109,Giderler[TELEFON])","v":0},{"$f":"SUBTOTAL(109,Giderler[DİĞER])","v":{"v":110,"d":"₺110.00"}},{"$nulls":3},{"$f":"SUBTOTAL(109,Giderler[[TOPLAM ]])","v":{"v":1627.7000000000007,"d":"₺1,627.70"}}]
[{"$nulls":11},"AVANSLAR",{"v":0,"d":"₺0.00"}]
[{"$nulls":11},"TOPLAM",{"$f":"Giderler[[#Totals],[TOPLAM ]]-Avanslar","v":{"v":1627.7000000000007,"d":"₺1,627.70"}}]